bitfinex/quotes_BTCUSD_20251104
["timestamp","ask_amount","ask_price","bid_price","bid_amount"]
[1762263243345,0.2321187,103940.0,103920.0,0.19545513]
[1762263243546,0.2321187,103940.0,103930.0,0.19243721]
[1762263243747,0.19243721,103930.0,103920.0,0.21575513]
[1762263243958,0.2090487,103940.0,103930.0,0.19243721]
[1762263244158,0.1924187,103940.0,103930.0,0.20143721]
[1762263244507,0.1924187,103940.0,103930.0,0.009]
[1762263244713,0.19243721,103930.0,103920.0,0.19245513]
[1762263244923,0.0099,103930.0,103920.0,0.24245513]
[1762263245120,0.2253887,103940.0,103930.0,0.19243721]
[1762263245335,0.2189487,103940.0,103920.0,0.26575513]
[1762263245532,0.2189487,103940.0,103930.0,0.001]
[1762263246074,0.2420187,103940.0,103930.0,0.001]
[1762263246317,0.2420187,103940.0,103930.0,0.19343721]
[1762263246318,0.2189487,103940.0,103930.0,0.19343721]
[1762263246485,0.0099,103940.0,103930.0,0.20243721]
[1762263247485,0.23503512,103950.0,103930.0,0.29223721]
[1762263247486,0.21196512,103950.0,103930.0,0.29223721]
[1762263247690,0.1924187,103940.0,103930.0,0.29223721]
[1762263247895,0.21196512,103950.0,103940.0,0.1924187]
[1762263248122,0.0099,103950.0,103940.0,0.2589187]
[1762263248346,0.20230019,103950.0,103940.0,0.2589187]
[1762263248541,0.20230019,103950.0,103940.0,0.2424187]
[1762263248748,0.20230019,103950.0,103940.0,0.1924187]
[1762263248957,0.0099,103950.0,103940.0,0.2089187]
[1762263249167,0.32083075,103960.0,103950.0,0.19240019]
[1762263249598,0.1924187,103940.0,103930.0,0.20205902]
[1762263249795,0.2090487,103940.0,103930.0,0.20205902]
[1762263250019,0.2321187,103940.0,103930.0,0.20205902]
[1762263250228,0.19243721,103930.0,103920.0,0.25207743]
[1762263250441,0.2321187,103940.0,103930.0,0.19243721]
[1762263250643,0.2154887,103940.0,103930.0,0.19243721]
[1762263250906,0.2321187,103940.0,103930.0,0.19243721]
[1762263251055,0.2321187,103940.0,103930.0,0.19743721]
[1762263251298,0.01663,103940.0,103930.0,0.19743721]
[1762263251505,0.23499019,103950.0,103940.0,0.1924187]
[1762263251682,0.0099,103950.0,103940.0,0.1932563]
[1762263251908,0.20230019,103950.0,103940.0,0.1932563]
[1762263252251,0.21893019,103950.0,103940.0,0.1932563]
[1762263253104,0.20228239,103960.0,103950.0,0.19240019]
[1762263253328,0.21341795,103970.0,103950.0,0.29499778]
[1762263253536,0.23663368,103970.0,103950.0,0.27169778]
[1762263253744,0.23663368,103970.0,103960.0,0.19238168]
[1762263253944,0.03463573,103970.0,103960.0,0.19321926]
[1762263254118,0.05126573,103970.0,103960.0,0.19321926]
[1762263254322,0.02819573,103970.0,103960.0,0.19321926]
[1762263254694,0.00014573,103970.0,103960.0,0.23301926]
[1762263254875,0.00014573,103970.0,103960.0,0.37993832]
[1762263255307,0.00014573,103970.0,103960.0,0.37993831]
[1762263256085,0.00014573,103970.0,103960.0,0.3799383]
[1762263256286,0.00014573,103970.0,103960.0,0.3839383]
[1762263256712,0.00014573,103970.0,103960.0,0.38793829]
[1762263257274,0.00014573,103970.0,103960.0,0.38393828]
[1762263257698,0.00014573,103970.0,103960.0,0.39193828]
[1762263257866,0.00014573,103970.0,103960.0,0.39193827]
[1762263259085,0.00014573,103970.0,103960.0,0.39193826]
[1762263259684,0.00024087,103990.0,103980.0,0.19234468]
[1762263259882,0.00024087,103990.0,103980.0,0.40953375]
[1762263260086,0.00024087,103990.0,103980.0,0.43427375]
[1762263260667,0.00034617,104000.0,103990.0,0.23345618]
[1762263260922,0.21318622,104020.0,104010.0,0.1922892]
[1762263261126,0.23590947,104020.0,104000.0,0.24230769]
[1762263261330,0.33938827,104010.0,103990.0,0.24232591]
[1762263261567,0.20882769,104000.0,103990.0,0.19232618]
[1762263261776,0.23199769,104000.0,103980.0,0.30728191]
[1762263261991,0.23199769,104000.0,103990.0,0.19232618]
[1762263261992,0.01652,104000.0,103990.0,0.19232618]
[1762263262212,0.0351,104010.0,104000.0,0.19230769]
[1762263262425,0.2042192,104010.0,104000.0,0.19230769]
[1762263262643,0.05062,104010.0,104000.0,0.19230769]
[1762263262855,0.2429092,104010.0,104000.0,0.19230769]
[1762263262990,0.2197392,104010.0,104000.0,0.19230769]
[1762263263194,0.19230769,104000.0,103980.0,0.20430344]
[1762263263403,0.01652,103990.0,103980.0,0.24234468]
[1762263263644,0.19232618,103990.0,103980.0,0.24234468]
[1762263264660,0.23201618,103990.0,103970.0,0.25280214]
[1762263264864,0.23201618,103990.0,103980.0,0.19234468]
[1762263265238,0.03908505,103990.0,103980.0,0.19234468]
[1762263265459,0.01591505,103990.0,103980.0,0.19434468]
[1762263265815,0.23141123,103990.0,103980.0,0.19234468]
[1762263266055,0.01591505,103990.0,103980.0,0.19318211]
[1762263266224,0.01562662,103990.0,103980.0,0.19718211]
[1762263266437,0.21571959,104000.0,103990.0,0.19232618]
[1762263266640,0.21481095,104000.0,103990.0,0.19232618]
[1762263266804,0.23073345,104000.0,103990.0,0.19232618]
[1762263267006,0.19232618,103990.0,103980.0,0.00483742]
[1762263267253,0.23201618,103990.0,103980.0,0.1971821]
[1762263267414,0.03969,103990.0,103980.0,0.1971821]
[1762263267836,0.01652,103990.0,103980.0,0.1971821]
[1762263268039,0.20884618,103990.0,103980.0,0.24418209]
[1762263268766,0.01652,103990.0,103980.0,0.24318209]
[1762263268982,0.21571851,104000.0,103990.0,0.19232618]
[1762263269379,0.23223851,104000.0,103990.0,0.19232618]
[1762263269922,0.23192876,104000.0,103980.0,0.24318209]
[1762263270056,0.23101756,104000.0,103990.0,0.19232618]
[1762263270262,0.23040818,104000.0,103990.0,0.19232618]
[1762263270665,0.19232618,103990.0,103980.0,0.24318208]
[1762263270860,0.20872618,103990.0,103980.0,0.0008374]
[1762263271311,0.20872618,103990.0,103980.0,0.19318208]
[1762263272420,0.20811392,103990.0,103980.0,0.19518208]
[1762263272580,0.23190878,103990.0,103980.0,0.19518208]
[1762263272787,0.01580839,103990.0,103980.0,0.19318207]
[1762263272982,0.01590403,103990.0,103980.0,0.19318207]
[1762263273208,0.00040579,103990.0,103980.0,0.25940207]
[1762263273443,0.33190006,104010.0,104000.0,0.19230769]
[1762263273691,0.05060917,104010.0,104000.0,0.19230769]
[1762263273890,0.21818777,104010.0,104000.0,0.19230769]
[1762263274116,0.21760836,104010.0,104000.0,0.19230769]
[1762263274318,0.00803585,104010.0,104000.0,0.20852769]
[1762263274528,0.22204572,104020.0,104010.0,0.1922892]
[1762263274732,0.2365392,104010.0,103990.0,0.25760581]
[1762263274936,0.23591405,104010.0,103990.0,0.30760581]
[1762263275142,0.21890781,104010.0,104000.0,0.19230769]
[1762263275334,0.04425,104010.0,104000.0,0.19230769]
[1762263275468,0.02054881,104010.0,104000.0,0.19230769]
[1762263275670,0.01954881,104010.0,104000.0,0.19230769]
[1762263275867,0.01896852,104010.0,104000.0,0.19230769]
[1762263276084,0.01939203,104010.0,104000.0,0.24230769]
[1762263276269,0.00299203,104010.0,104000.0,0.25852769]
[1762263276684,0.00299203,104010.0,104000.0,0.28244769]
[1762263276890,0.001,104010.0,104000.0,0.28244769]
[1762263277088,0.00039366,104010.0,104000.0,0.28244769]
[1762263277288,0.20231581,104020.0,104010.0,0.1922892]
[1762263277597,0.22522665,104020.0,104010.0,0.1922892]
[1762263277810,0.24132451,104020.0,104010.0,0.1922892]
[1762263278007,0.0079508,104020.0,104010.0,0.2046892]
[1762263278230,0.21603606,104020.0,104010.0,0.2546892]
[1762263278434,0.23925623,104020.0,104010.0,0.1922892]
[1762263278763,0.23797716,104010.0,103990.0,0.20277676]
[1762263278937,0.23737066,104010.0,104000.0,0.19230769]
[1762263279094,0.23729952,104010.0,103990.0,0.21517675]
[1762263279697,0.23729952,104010.0,104000.0,0.19230769]
[1762263280087,0.04622079,104010.0,104000.0,0.19230769]
[1762263280511,0.04622079,104010.0,103990.0,0.21517674]
[1762263280512,0.23850999,104010.0,103990.0,0.21517674]
[1762263280730,0.0164,104000.0,103990.0,0.20277674]
[1762263281704,0.0405,104000.0,103990.0,0.20277674]
[1762263281903,0.0164,104000.0,103990.0,0.20277674]
[1762263282196,0.0164,104000.0,103990.0,0.20377673]
[1762263282383,0.00572079,104010.0,104000.0,0.19230769]
[1762263282760,0.02212079,104010.0,104000.0,0.19230769]
[1762263283160,0.00542109,104010.0,104000.0,0.25852769]
[1762263283481,0.02163,104010.0,104000.0,0.24230769]
[1762263283717,0.2139192,104010.0,104000.0,0.19230769]
[1762263283918,0.2149192,104010.0,104000.0,0.19230769]
[1762263284239,0.2139192,104010.0,104000.0,0.19230769]
[1762263284437,0.23741907,104010.0,103990.0,0.26517671]
[1762263284651,0.23741907,104010.0,103990.0,0.00083728]
[1762263284652,0.23280769,104000.0,103990.0,0.00083728]
[1762263285060,0.25350457,104000.0,103990.0,0.00083728]
[1762263285907,0.25350457,104000.0,103990.0,0.19316346]
[1762263286104,0.03709688,104000.0,103990.0,0.20515346]
[1762263286310,0.02069688,104000.0,103990.0,0.29521346]
[1762263286534,0.00462987,104010.0,104000.0,0.19230769]
[1762263286797,0.00562987,104010.0,104000.0,0.24230769]
[1762263286999,0.001,104010.0,104000.0,0.28236769]
[1762263287259,0.21911606,104020.0,104000.0,0.28320495]
[1762263287465,0.23708877,104020.0,104010.0,0.1922892]
[1762263287599,0.02113,104010.0,104000.0,0.19314495]
[1762263287814,0.02113,104010.0,104000.0,0.19314494]
[1762263288019,0.2134192,104010.0,104000.0,0.19314494]
[1762263288367,0.02113,104010.0,104000.0,0.19314494]
[1762263288609,0.2134192,104010.0,104000.0,0.19314494]
[1762263288852,0.02113,104010.0,104000.0,0.19314494]
[1762263289092,0.02113,104010.0,104000.0,0.19514494]
[1762263289722,0.00614069,104020.0,104010.0,0.1922892]
[1762263289892,0.02411223,104020.0,104010.0,0.1922892]
[1762263290311,0.0268439,104020.0,104010.0,0.2077892]
[1762263290508,0.00614069,104020.0,104010.0,0.2577892]
[1762263290912,0.00714069,104020.0,104010.0,0.2422892]
[1762263291184,0.00714069,104020.0,104010.0,0.2577892]
[1762263291391,0.00714069,104020.0,104010.0,0.2823492]
[1762263291938,0.00114581,104020.0,104010.0,0.2823492]
[1762263292724,0.00114581,104020.0,104010.0,0.2577892]
[1762263293118,0.00038656,104020.0,104010.0,0.2843492]
[1762263293884,0.00038656,104020.0,104010.0,0.3275892]
[1762263294291,0.00038656,104020.0,104010.0,0.3276292]
[1762263294490,0.19265727,104020.0,104010.0,0.2875692]
[1762263294693,0.01688656,104020.0,104010.0,0.2875692]
[1762263294893,0.20915727,104020.0,104010.0,0.05204]
[1762263295255,0.23350727,104020.0,104010.0,0.00204]
[1762263296023,0.23350727,104020.0,104010.0,0.1943292]
[1762263296223,0.04123656,104020.0,104010.0,0.1943292]
[1762263296436,0.01688656,104020.0,104010.0,0.1943292]
[1762263296636,0.01688656,104020.0,104010.0,0.2443292]
[1762263296848,0.19234139,104030.0,104020.0,0.19227071]
[1762263297207,0.23147249,104030.0,104020.0,0.19227071]
[1762263297357,0.03921883,104030.0,104020.0,0.19227071]
[1762263297697,0.1346979,104030.0,104020.0,0.19227071]
[1762263297875,0.11674013,104030.0,104020.0,0.19227071]
[1762263298076,0.02226106,104030.0,104020.0,0.20777071]
[1762263298397,0.00157366,104030.0,104020.0,0.25777071]
[1762263299058,0.00157366,104030.0,104020.0,0.25781071]
[1762263299472,0.00057366,104030.0,104020.0,0.25981071]
[1762263300080,0.00048593,104030.0,104020.0,0.28437071]
[1762263300434,0.00048593,104030.0,104020.0,0.37984978]
[1762263300998,0.00048593,104030.0,104020.0,0.32984978]
[1762263301199,0.00048593,104030.0,104020.0,0.42304978]
[1762263301410,0.00048593,104030.0,104020.0,0.37784978]
[1762263301573,0.00748593,104030.0,104020.0,0.37104978]
[1762263301781,0.00748593,104030.0,104020.0,0.37784978]
[1762263302168,0.00748593,104030.0,104020.0,0.42108978]
[1762263302704,0.00772665,104030.0,104020.0,0.37784978]
[1762263303069,0.00711235,104030.0,104020.0,0.42108978]
[1762263303252,0.01111235,104030.0,104020.0,0.42192688]
[1762263303457,0.01080939,104030.0,104020.0,0.42192688]
[1762263303664,0.0004,104040.0,104030.0,0.39225223]
[1762263303908,0.0004,104040.0,104030.0,0.44430223]
[1762263304102,0.0004,104040.0,104030.0,0.33754223]
[1762263304327,0.00064068,104040.0,104030.0,0.29430223]
[1762263304484,3.929e-05,104040.0,104030.0,0.33754223]
[1762263304685,0.00023795,104060.0,104050.0,0.26970528]
[1762263304892,0.00038364,104060.0,104050.0,0.26970528]
[1762263305052,0.0008649,104060.0,104050.0,0.26970528]
[1762263305258,0.0008649,104060.0,104050.0,0.29426528]
[1762263305662,0.00057899,104060.0,104050.0,0.29426528]
[1762263305887,0.00027451,104060.0,104050.0,0.29426528]
[1762263306955,0.00027451,104060.0,104050.0,0.29626528]
[1762263307335,0.00027451,104060.0,104050.0,0.49426528]
[1762263307534,0.00027451,104060.0,104050.0,0.49926528]
[1762263307778,0.00027451,104060.0,104050.0,0.50326528]
[1762263307911,0.00027451,104060.0,104050.0,0.71326527]
[1762263308108,0.00027451,104060.0,104050.0,0.70826527]
[1762263308593,0.0002,104070.0,104060.0,0.2421968]
[1762263308796,0.0002,104070.0,104060.0,0.42101587]
[1762263310048,0.0022,104070.0,104060.0,0.42101587]
[1762263310862,0.00189641,104070.0,104060.0,0.42101587]
[1762263311068,0.00098122,104070.0,104060.0,0.37773587]
[1762263311274,0.00037542,104070.0,104060.0,0.2822568]
[1762263311516,0.00037542,104070.0,104060.0,0.3255368]
[1762263311722,0.20146078,104080.0,104070.0,0.25416834]
[1762263311723,0.20064821,104080.0,104070.0,0.25416834]
[1762263311933,0.00787413,104080.0,104070.0,0.26966834]
[1762263312146,0.00699613,104080.0,104070.0,0.24422834]
[1762263312353,0.00639913,104080.0,104070.0,0.29422834]
[1762263312557,0.00609145,104080.0,104070.0,0.29422834]
[1762263312772,0.00520374,104080.0,104070.0,0.29422834]
[1762263312973,0.00461565,104080.0,104070.0,0.29422834]
[1762263313181,0.00401217,104080.0,104070.0,0.29422834]
[1762263313405,0.00340655,104080.0,104070.0,0.29722834]
[1762263313625,0.00281347,104080.0,104070.0,0.29722834]
[1762263313830,0.00190713,104080.0,104070.0,0.29722834]
[1762263314084,0.00129799,104080.0,104070.0,0.29722834]
[1762263314293,0.00038672,104080.0,104070.0,0.29722834]
[1762263314502,0.00086783,104080.0,104070.0,0.29722834]
[1762263314720,0.00023939,104090.0,104080.0,0.20765987]
[1762263314929,0.21090753,104110.0,104100.0,0.24212295]
[1762263315134,0.00844068,104110.0,104100.0,0.26985295]
[1762263315349,0.00755654,104110.0,104100.0,0.26985295]
[1762263315523,0.00014569,104110.0,104100.0,0.26985295]
[1762263315768,0.34488033,104130.0,104110.0,0.1921045]
[1762263315978,0.1620768,104130.0,104120.0,0.19208605]
[1762263316192,0.29850941,104130.0,104120.0,0.19208605]
[1762263316397,0.01034897,104130.0,104120.0,0.24208605]
[1762263316674,0.00957444,104150.0,104120.0,0.28067605]
[1762263316874,0.19221379,104150.0,104130.0,0.03474]
[1762263317089,0.19162286,104150.0,104130.0,0.28900368]
[1762263317295,0.19114711,104140.0,104130.0,0.08114676]
[1762263317505,0.19207103,104130.0,104120.0,0.05]
[1762263317716,0.20182021,104130.0,104110.0,0.23644535]
[1762263317934,0.01005258,104130.0,104120.0,0.24308605]
[1762263318136,0.19204916,104140.0,104130.0,0.06194]
[1762263318380,0.19113975,104140.0,104130.0,0.2540076]
[1762263318588,0.79336522,104150.0,104130.0,0.2540076]
[1762263318793,0.19147312,104140.0,104130.0,0.2540076]
[1762263318991,0.57825606,104150.0,104140.0,0.19204916]
[1762263319246,0.19173496,104150.0,104140.0,0.19204916]
[1762263319450,0.79800137,104160.0,104140.0,0.24204916]
[1762263319654,0.19171805,104150.0,104140.0,0.24204916]
[1762263319857,0.19171834,104150.0,104140.0,0.24204916]
[1762263320064,0.82241008,104160.0,104140.0,0.24204916]
[1762263320065,0.80771337,104160.0,104140.0,0.25783916]
[1762263320271,0.80771337,104160.0,104140.0,0.28063916]
[1762263320272,0.19215786,104160.0,104140.0,0.28063916]
[1762263320503,0.19204916,104140.0,104130.0,0.01194]
[1762263320677,0.86883169,104150.0,104140.0,0.001]
[1762263320893,0.8679183,104150.0,104140.0,0.001]
[1762263321088,0.1920761,104130.0,104110.0,0.27980535]
[1762263321318,0.78328103,104140.0,104120.0,0.21129465]
[1762263321535,0.76949103,104140.0,104130.0,0.05]
[1762263321810,0.20165585,104140.0,104130.0,0.05]
[1762263322010,0.85322444,104150.0,104130.0,0.2578576]
[1762263322256,0.00115085,104140.0,104130.0,0.2806576]
[1762263322458,0.00053889,104140.0,104130.0,0.2578576]
[1762263322630,0.00053889,104140.0,104130.0,0.2806576]
[1762263322631,0.00023716,104140.0,104130.0,0.2806576]
[1762263322840,0.19171544,104150.0,104140.0,0.24204357]
[1762263323060,0.19112377,104150.0,104140.0,0.24204357]
[1762263323269,0.19021764,104150.0,104140.0,0.24204357]
[1762263323482,0.19173416,104150.0,104140.0,0.05]
[1762263323682,0.86883841,104150.0,104130.0,0.24206307]
[1762263323881,0.19144934,104140.0,104130.0,0.053]
[1762263324087,0.7724826,104140.0,104130.0,0.003]
[1762263324320,0.1920676,104130.0,104120.0,0.05]
[1762263324529,0.21470691,104130.0,104120.0,0.05]
[1762263324755,0.79633209,104130.0,104110.0,0.2540445]
[1762263324947,0.78195467,104130.0,104110.0,0.2768445]
[1762263325154,0.19179628,104120.0,104110.0,0.2768445]
[1762263325352,0.19120843,104120.0,104110.0,0.2540445]
[1762263325573,0.00916,104130.0,104120.0,0.19208605]
[1762263325779,0.78237774,104150.0,104130.0,0.1920627]
[1762263325943,0.19203072,104150.0,104130.0,0.2148627]
[1762263326119,0.75895739,104150.0,104130.0,0.2648627]
[1762263326322,0.75835056,104150.0,104140.0,0.19204916]
[1762263326518,0.56753421,104150.0,104140.0,0.19204916]
[1762263326815,0.75956493,104150.0,104140.0,0.19204916]
[1762263327018,0.77336532,104150.0,104140.0,0.19204916]
[1762263327157,0.58043962,104150.0,104140.0,0.19204916]
[1762263327362,0.77188947,104150.0,104140.0,0.19204916]
[1762263327640,0.77128112,104150.0,104140.0,0.19204916]
[1762263327842,0.19174822,104140.0,104130.0,0.05048545]
[1762263328065,0.77041184,104140.0,104130.0,0.00048545]
[1762263328270,0.76950412,104140.0,104130.0,0.00048545]
[1762263328479,0.76860149,104140.0,104130.0,0.00048545]
[1762263328685,0.76769628,104140.0,104130.0,0.00048545]
[1762263328889,0.77882615,104140.0,104130.0,0.00048545]
[1762263329105,0.7782192,104140.0,104130.0,0.00148545]
[1762263329310,0.84461257,104140.0,104130.0,0.00148545]
[1762263329504,0.84461257,104140.0,104130.0,0.00048545]
[1762263329505,0.84372819,104140.0,104130.0,0.00048545]
[1762263329785,0.84311722,104140.0,104130.0,0.00048545]
[1762263330007,0.8425093,104140.0,104130.0,0.00048545]
[1762263330213,0.84190569,104140.0,104130.0,0.00048545]
[1762263330403,0.19181843,104110.0,104100.0,0.00136529]
[1762263330727,0.19181843,104110.0,104100.0,0.00151087]
[1762263330728,0.78836152,104110.0,104100.0,0.00151087]
[1762263331144,0.78746736,104110.0,104100.0,0.00151087]
[1762263331319,0.82502923,104110.0,104100.0,0.00151087]
[1762263331520,0.83337476,104110.0,104100.0,0.00151087]
[1762263331722,0.8327576,104110.0,104100.0,0.00151087]
[1762263331950,0.8327576,104110.0,104100.0,8.7e-07]
[1762263331951,0.83245699,104110.0,104100.0,8.7e-07]
[1762263332155,0.20327524,104090.0,104070.0,0.19301497]
[1762263332355,0.78253042,104090.0,104070.0,0.19316065]
[1762263332548,0.19215987,104080.0,104070.0,0.19316065]
[1762263332849,0.20357987,104080.0,104070.0,0.19316065]
[1762263333059,0.01142,104080.0,104070.0,0.19316065]
[1762263333271,0.19185524,104090.0,104070.0,0.2969323]
[1762263333430,0.19185524,104090.0,104070.0,0.27139065]
[1762263333642,0.90504632,104100.0,104080.0,0.19215987]
[1762263333840,0.19214141,104090.0,104080.0,0.00083661]
[1762263334076,0.20356141,104090.0,104080.0,0.00083661]
[1762263334252,0.78281659,104090.0,104080.0,0.00083661]
[1762263334449,0.77139659,104090.0,104080.0,0.00083661]
[1762263334653,0.20356141,104090.0,104080.0,0.19299648]
[1762263335430,0.20356141,104090.0,104080.0,0.19699648]
[1762263335834,0.20356141,104090.0,104080.0,0.19799648]
[1762263336036,0.89362632,104100.0,104090.0,0.19214141]
[1762263336248,0.36432258,104100.0,104090.0,0.19214141]
[1762263336448,0.92614175,104100.0,104090.0,0.19214141]
[1762263336664,0.35830657,104100.0,104090.0,0.19214141]
[1762263336873,0.19214141,104090.0,104080.0,0.24399635]
[1762263337069,0.10689907,104100.0,104090.0,0.19214141]
[1762263337288,0.66331425,104100.0,104090.0,0.19614141]
[1762263337472,0.28760202,104100.0,104090.0,0.20793141]
[1762263337673,0.19212295,104100.0,104090.0,0.20793141]
[1762263337851,0.8668572,104100.0,104090.0,0.004]
[1762263338193,0.88476575,104100.0,104090.0,0.004]
[1762263338816,0.19214141,104090.0,104080.0,0.2682974]
[1762263339010,0.78281659,104090.0,104080.0,0.00131764]
[1762263339228,0.78281659,104090.0,104080.0,0.19847751]
[1762263339438,0.78281659,104090.0,104080.0,0.00631764]
[1762263339625,0.56783518,104100.0,104080.0,0.19847751]
[1762263339811,0.24426004,104110.0,104100.0,0.19212295]
[1762263340013,0.04531775,104110.0,104100.0,0.19212295]
[1762263340216,0.00678,104110.0,104100.0,0.28338295]
[1762263340418,0.2217245,104110.0,104090.0,0.0120305]
[1762263340578,0.29902202,104100.0,104090.0,0.0002405]
[1762263340786,0.31044202,104100.0,104090.0,0.0002405]
[1762263341013,1.00704522,104100.0,104090.0,0.0002405]
[1762263341215,1.04558427,104100.0,104090.0,0.0002405]
[1762263341416,1.07443939,104100.0,104090.0,0.0002405]
[1762263341843,1.07443939,104100.0,104090.0,0.0002805]
[1762263342020,0.37783619,104100.0,104090.0,0.0002805]
[1762263342220,1.07443939,104100.0,104090.0,0.0002805]
[1762263342615,1.07443898,104100.0,104090.0,0.0003205]
[1762263343827,1.09338613,104100.0,104090.0,0.0003205]
[1762263344101,0.19214141,104090.0,104080.0,0.00087658]
[1762263344301,0.96907041,104090.0,104080.0,0.00087658]
[1762263344625,0.96907041,104090.0,104080.0,0.00111712]
[1762263345909,0.96011938,104090.0,104080.0,0.00111712]
[1762263346233,0.96011938,104090.0,104080.0,0.00115712]
[1762263346623,0.96011938,104090.0,104080.0,0.00119712]
[1762263346784,0.96011938,104090.0,104080.0,0.00123712]
[1762263348372,0.93948668,104090.0,104080.0,0.00123712]
[1762263348564,0.96008707,104090.0,104080.0,0.00123712]
[1762263348984,1.01008707,104090.0,104080.0,0.00123712]
[1762263349217,0.96008707,104090.0,104080.0,0.00123712]
[1762263349771,0.96007232,104090.0,104080.0,0.00123712]
[1762263350531,0.988933,104090.0,104080.0,0.00123712]
[1762263350772,0.2923298,104090.0,104080.0,0.00123712]
[1762263350930,0.24242209,104090.0,104080.0,0.00123712]
[1762263351329,0.25384209,104090.0,104080.0,0.00123712]
[1762263351571,0.96833853,104090.0,104080.0,0.00123712]
[1762263351971,0.95044529,104090.0,104080.0,0.00123712]
[1762263352169,0.93902529,104090.0,104080.0,0.00123712]
[1762263352391,0.25384209,104090.0,104080.0,0.00123712]
[1762263352584,0.25384209,104090.0,104080.0,0.19339699]
[1762263352790,0.25384209,104090.0,104080.0,0.00123712]
[1762263353278,0.21356141,104090.0,104080.0,0.19339699]
[1762263353480,0.22498141,104090.0,104080.0,0.00123711]
[1762263353888,0.22498141,104090.0,104080.0,0.00323711]
[1762263354611,0.01,104090.0,104080.0,0.21081698]
[1762263354806,0.21356141,104090.0,104080.0,0.24539698]
[1762263355008,0.21356141,104090.0,104080.0,0.00323711]
[1762263355153,0.22498141,104090.0,104080.0,0.00323711]
[1762263355756,0.22498141,104090.0,104080.0,0.00423711]
[1762263355757,0.92158461,104090.0,104080.0,0.00423711]
[1762263356234,0.94221844,104090.0,104080.0,0.00423711]
[1762263356413,0.96014773,104090.0,104080.0,0.00223711]
[1762263356619,0.96014773,104090.0,104080.0,0.00123711]
[1762263357219,0.96014847,104090.0,104080.0,0.00123711]
[1762263357636,0.26354527,104090.0,104080.0,0.00123711]
[1762263357982,0.96014847,104090.0,104080.0,0.00123711]
[1762263358205,0.96912126,104090.0,104080.0,0.00123711]
[1762263358979,0.27251806,104090.0,104080.0,0.40123711]
[1762263359099,0.27251806,104090.0,104080.0,0.4012371]
[1762263360264,0.27251806,104090.0,104080.0,0.40123709]
[1762263361066,0.26354527,104090.0,104080.0,0.40123709]
[1762263361276,0.2725382,104090.0,104080.0,0.40123709]
[1762263361631,0.2348182,104090.0,104080.0,0.40123709]
[1762263362038,0.2175182,104090.0,104080.0,0.40123709]
[1762263362779,0.9141214,104090.0,104080.0,0.40123708]
[1762263363978,0.2175182,104090.0,104080.0,0.40123707]
[1762263365385,0.2175182,104090.0,104080.0,0.40123706]
[1762263365958,0.21178985,104090.0,104080.0,0.40123706]
[1762263367139,0.90839305,104090.0,104080.0,0.40123705]
[1762263367940,0.90839305,104090.0,104080.0,0.40123704]
[1762263369246,3.93239305,104090.0,104080.0,0.40123703]
[1762263369445,3.94239304,104090.0,104080.0,0.40123703]
[1762263369677,3.94239304,104090.0,104080.0,0.40123702]
[1762263370595,3.94239304,104090.0,104080.0,0.40123701]
[1762263370823,3.94439304,104090.0,104080.0,0.40123701]
[1762263371192,3.24778984,104090.0,104080.0,0.40123701]
[1762263371420,0.94439304,104090.0,104080.0,0.40123701]
[1762263371940,0.21378985,104090.0,104080.0,0.40123701]
[1762263372077,0.21378985,104090.0,104080.0,0.401237]
[1762263372683,0.20236985,104090.0,104080.0,0.40123699]
[1762263372881,0.21378985,104090.0,104080.0,0.40123699]
[1762263373748,0.21378985,104090.0,104080.0,0.40123698]
[1762263374303,0.21378985,104090.0,104080.0,0.60881685]
[1762263374304,0.06097679,104090.0,104080.0,0.60881685]
[1762263374483,0.01993003,104090.0,104080.0,0.63277685]
[1762263374640,0.002,104090.0,104080.0,0.68277684]
[1762263374858,0.002,104090.0,104080.0,0.68277683]
[1762263375266,0.30833026,104100.0,104080.0,0.68277683]
[1762263375430,0.30833026,104100.0,104080.0,0.68277682]
[1762263375431,0.32631598,104100.0,104080.0,0.68277682]
[1762263375637,0.32631598,104100.0,104090.0,0.19214141]
[1762263375837,0.32631506,104100.0,104090.0,0.19297782]
[1762263376040,0.23083599,104100.0,104090.0,0.22070782]
[1762263376266,0.21010867,104100.0,104090.0,0.22070782]
[1762263376441,0.21010867,104100.0,104090.0,0.20468782]
[1762263376634,0.01798572,104100.0,104090.0,0.02856641]
[1762263376829,0.00678,104110.0,104100.0,0.19212295]
[1762263377035,0.02475989,104110.0,104100.0,0.20897935]
[1762263377698,0.00678,104110.0,104100.0,0.20897935]
[1762263378410,0.0013652,104130.0,104120.0,0.19208605]
[1762263378555,0.0013652,104130.0,104120.0,0.24475605]
[1762263378757,0.0013652,104130.0,104120.0,0.05267]
[1762263378758,0.1934328,104130.0,104120.0,0.05267]
[1762263379087,0.1934328,104130.0,104120.0,0.24475605]
[1762263379287,0.2048528,104130.0,104120.0,0.01171]
[1762263379584,0.2048528,104130.0,104110.0,0.2538145]
[1762263379787,0.2048528,104130.0,104120.0,0.19208605]
[1762263380001,0.19208605,104120.0,104110.0,0.01254638]
[1762263380169,0.20350605,104120.0,104110.0,0.01254638]
[1762263380371,0.2048528,104130.0,104110.0,0.20465088]
[1762263380572,0.1934328,104130.0,104110.0,0.22067088]
[1762263380811,0.19208605,104120.0,104110.0,0.22067087]
[1762263380964,0.1934328,104130.0,104110.0,0.24561087]
[1762263381168,0.1934328,104130.0,104120.0,0.006]
[1762263381606,0.0013652,104130.0,104120.0,0.25825465]
[1762263381812,0.0013652,104130.0,104120.0,0.23304605]
[1762263382221,0.1934328,104130.0,104120.0,0.23304605]
[1762263382426,0.0013652,104130.0,104120.0,0.23304605]
[1762263382624,0.1934328,104130.0,104120.0,0.20910605]
[1762263382827,0.1934328,104130.0,104120.0,0.20810605]
[1762263382978,0.1934328,104130.0,104120.0,0.01902]
[1762263383184,0.0013652,104130.0,104120.0,0.02202]
[1762263383406,0.1934328,104130.0,104120.0,0.02202]
[1762263383608,0.1934328,104130.0,104120.0,0.21410605]
[1762263383828,0.0013652,104130.0,104120.0,0.21410605]
[1762263384028,0.1934328,104130.0,104120.0,0.21410605]
[1762263384461,0.0013652,104130.0,104120.0,0.23904605]
[1762263384792,0.31175187,104130.0,104120.0,0.006]
[1762263385129,0.28891187,104130.0,104120.0,0.21410605]
[1762263385315,0.28891187,104130.0,104120.0,0.21110605]
[1762263385518,0.28891187,104130.0,104120.0,0.20810605]
[1762263385756,0.30033187,104130.0,104120.0,0.002]
[1762263385959,0.30033187,104130.0,104120.0,0.003]
[1762263386764,0.31175187,104130.0,104120.0,0.003]
[1762263386991,1.00835507,104130.0,104120.0,0.003]
[1762263387337,0.31175187,104130.0,104120.0,0.003]
[1762263387566,0.30033187,104130.0,104120.0,0.003]
[1762263388179,0.0013652,104130.0,104120.0,0.21110605]
[1762263388375,0.0013652,104130.0,104120.0,0.28604605]
[1762263389003,0.0013652,104130.0,104120.0,0.28404605]
[1762263389206,0.1934328,104130.0,104120.0,0.28304605]
[1762263389409,0.2048528,104130.0,104120.0,0.05]
[1762263389636,0.2048528,104130.0,104120.0,0.003]